[Event "Titled Tuesday Blitz May 2 Late 2023"]
[White "Szpar, Milosz"]
[Black "Karttunen, Mika"]
[WhiteFideId "1184989"]
[BlackFideId "502081"]
[WhiteElo "2436"]
[BlackElo "2396"]
[Result "1-0"]
[Round "06"]
[TimeControl "180+2"]
[Date "2023.05.02"]
[WhiteClock "0:00:04"]
[BlackClock "0:00:04"]

1. e4 {[%clk 0:03:00]}  c5 {[%clk 0:02:58]} 2. c3 {[%clk 0:03:00]}  Nf6 {[%clk 0:02:57]} 3. e5 {[%clk 0:02:59]}  Nd5 {[%clk 0:02:57]} 4. d4 {[%clk 0:02:59]}  cxd4 {[%clk 0:02:57]} 5. Nf3 {[%clk 0:02:59]}  d6 {[%clk 0:02:56]} 6. exd6 {[%clk 0:02:59]}  Qxd6 {[%clk 0:02:56]} 7. Nxd4 {[%clk 0:02:59]}  a6 {[%clk 0:02:53]} 8. Be2 {[%clk 0:02:56]}  Nf6 {[%clk 0:02:52]} 9. O-O {[%clk 0:02:55]}  e5 {[%clk 0:02:46]} 10. Nb3 {[%clk 0:02:54]}  Nc6 {[%clk 0:02:44]} 11. N1d2 {[%clk 0:02:52]}  Be6 {[%clk 0:02:38]} 12. Nc4 {[%clk 0:02:51]}  Qc7 {[%clk 0:02:33]} 13. Bg5 {[%clk 0:02:43]}  Nd7 {[%clk 0:02:29]} 14. Ne3 {[%clk 0:02:35]}  f6 {[%clk 0:02:23]} 15. Bh4 {[%clk 0:02:33]}  O-O-O {[%clk 0:01:56]} 16. Bg4 {[%clk 0:02:23]}  Bxg4 {[%clk 0:01:15]} 17. Qxg4 {[%clk 0:02:23]}  g5 {[%clk 0:01:14]} 18. Nd5 {[%clk 0:02:13]}  Qd6 {[%clk 0:01:05]} 19. Nb6+ {[%clk 0:02:13]}  Kc7 {[%clk 0:01:03]} 20. Rad1 {[%clk 0:02:12]}  Nxb6 {[%clk 0:00:59]} 21. Rxd6 {[%clk 0:02:10]}  Bxd6 {[%clk 0:00:58]} 22. Bg3 {[%clk 0:02:05]}  h5 {[%clk 0:00:58]} 23. Qe4 {[%clk 0:02:01]}  h4 {[%clk 0:00:58]} 24. h3 {[%clk 0:02:00]}  hxg3 {[%clk 0:00:57]} 25. fxg3 {[%clk 0:02:00]}  Be7 {[%clk 0:00:57]} 26. Kh2 {[%clk 0:01:39]}  Rd7 {[%clk 0:00:55]} 27. Rf2 {[%clk 0:01:28]}  Kb8 {[%clk 0:00:54]} 28. Nd2 {[%clk 0:01:27]}  Rhd8 {[%clk 0:00:51]} 29. Nc4 {[%clk 0:01:26]}  Nxc4 {[%clk 0:00:51]} 30. Qxc4 {[%clk 0:01:26]}  Rd5 {[%clk 0:00:50]} 31. a4 {[%clk 0:01:23]}  Rd2 {[%clk 0:00:44]} 32. Rxd2 {[%clk 0:01:22]}  Rxd2 {[%clk 0:00:45]} 33. b4 {[%clk 0:01:22]}  Rd7 {[%clk 0:00:33]} 34. b5 {[%clk 0:01:22]}  axb5 {[%clk 0:00:33]} 35. axb5 {[%clk 0:01:23]}  Nd8 {[%clk 0:00:30]} 36. Qg4 {[%clk 0:01:19]}  Rc7 {[%clk 0:00:27]} 37. Qh5 {[%clk 0:01:13]}  b6 {[%clk 0:00:27]} 38. Qe8 {[%clk 0:01:13]}  Kb7 {[%clk 0:00:25]} 39. h4 {[%clk 0:00:58]}  gxh4 {[%clk 0:00:25]} 40. gxh4 {[%clk 0:00:58]}  Ne6 {[%clk 0:00:24]} 41. h5 {[%clk 0:00:56]}  Ng5 {[%clk 0:00:24]} 42. h6 {[%clk 0:00:53]}  Bd6 {[%clk 0:00:19]} 43. Qd8 {[%clk 0:00:51]}  Nf7 {[%clk 0:00:15]} 44. Qxf6 {[%clk 0:00:42]}  e4+ {[%clk 0:00:14]} 45. Kh1 {[%clk 0:00:40]}  Re7 {[%clk 0:00:13]} 46. h7 {[%clk 0:00:29]}  e3 {[%clk 0:00:14]} 47. Qf3+ {[%clk 0:00:20]}  Kc7 {[%clk 0:00:10]} 48. Qc6+ {[%clk 0:00:18]}  Kd8 {[%clk 0:00:10]} 49. Qxb6+ {[%clk 0:00:18]}  Bc7 {[%clk 0:00:09]} 50. Qd4+ {[%clk 0:00:17]}  Ke8 {[%clk 0:00:08]} 51. h8=Q+ {[%clk 0:00:14]}  Nxh8 {[%clk 0:00:09]} 52. Qxh8+ {[%clk 0:00:15]}  Kd7 {[%clk 0:00:09]} 53. Qd4+ {[%clk 0:00:13]}  Kc8 {[%clk 0:00:10]} 54. Qg4+ {[%clk 0:00:14]}  Kb8 {[%clk 0:00:09]} 55. Qe2 {[%clk 0:00:14]}  Rd7 {[%clk 0:00:09]} 56. Kg1 {[%clk 0:00:09]}  Bb6 {[%clk 0:00:07]} 57. Kf1 {[%clk 0:00:07]}  Rf7+ {[%clk 0:00:07]} 58. Ke1 {[%clk 0:00:06]}  Rf2 {[%clk 0:00:07]} 59. Qg4 {[%clk 0:00:05]}  Rb2 {[%clk 0:00:03]} 60. Qg8+ {[%clk 0:00:04]}  Ka7 {[%clk 0:00:03]} 61. Qf7+ {[%clk 0:00:03]}  Ka8 {[%clk 0:00:03]} 62. Qe8+ {[%clk 0:00:04]}  Kb7 {[%clk 0:00:03]} 63. Qd7+ {[%clk 0:00:04]}  Kb8 {[%clk 0:00:03]} 64. Qd6+ {[%clk 0:00:05]}  Kb7 {[%clk 0:00:04]} 65. Qc6+ {[%clk 0:00:05]}  Ka7 {[%clk 0:00:03]} 66. g4 {[%clk 0:00:04]}  Rb1+ {[%clk 0:00:03]} 67. Ke2 {[%clk 0:00:04]}  Rb2+ {[%clk 0:00:04]} 68. Kd3 {[%clk 0:00:04]}  Rd2+ {[%clk 0:00:04]} 69. Kc4 {[%clk 0:00:04]}  e2 {[%clk 0:00:04]} 70. Qe6 {[%clk 0:00:04]}  Bf2 {[%clk 0:00:03]} 71. Qf7+ {[%clk 0:00:03]}  Kb8 {[%clk 0:00:04]} 72. Qxf2 {[%clk 0:00:04]} 1-0


[Site "https://www.chess.com"]

[Event "Titled Tuesday Blitz May 2 Late 2023"]
[White "Timmermans, Mark"]
[Black "Risteski, Emil"]
[WhiteFideId "1026399"]
[BlackFideId "15005267"]
[WhiteElo "2460"]
[BlackElo "2251"]
[Result "1-0"]
[Round "06"]
[TimeControl "180+2"]
[Date "2023.05.02"]
[WhiteClock "0:01:07"]
[BlackClock "0:00:08"]

1. e4 {[%clk 0:03:00]}  e6 {[%clk 0:02:55]} 2. Qe2 {[%clk 0:02:55]}  c5 {[%clk 0:02:49]} 3. g3 {[%clk 0:02:54]}  Nc6 {[%clk 0:02:50]} 4. c3 {[%clk 0:02:53]}  g6 {[%clk 0:02:49]} 5. Bg2 {[%clk 0:02:53]}  Bg7 {[%clk 0:02:49]} 6. f4 {[%clk 0:02:53]}  Nge7 {[%clk 0:02:40]} 7. Nf3 {[%clk 0:02:52]}  O-O {[%clk 0:02:40]} 8. O-O {[%clk 0:02:52]}  Rb8 {[%clk 0:02:40]} 9. Na3 {[%clk 0:02:48]}  a6 {[%clk 0:02:36]} 10. Nc2 {[%clk 0:02:48]}  b5 {[%clk 0:02:32]} 11. d4 {[%clk 0:02:48]}  cxd4 {[%clk 0:02:28]} 12. cxd4 {[%clk 0:02:47]}  d5 {[%clk 0:02:26]} 13. e5 {[%clk 0:02:43]}  h5 {[%clk 0:02:26]} 14. h3 {[%clk 0:02:35]}  b4 {[%clk 0:02:18]} 15. g4 {[%clk 0:02:33]}  hxg4 {[%clk 0:02:17]} 16. hxg4 {[%clk 0:02:34]}  a5 {[%clk 0:02:18]} 17. Nfe1 {[%clk 0:02:20]}  Qb6 {[%clk 0:02:14]} 18. Qe3 {[%clk 0:02:01]}  g5 {[%clk 0:01:54]} 19. fxg5 {[%clk 0:01:51]}  Ng6 {[%clk 0:01:44]} 20. Rf6 {[%clk 0:01:51]}  Ba6 {[%clk 0:01:27]} 21. b3 {[%clk 0:01:36]}  Rbc8 {[%clk 0:01:19]} 22. Bd2 {[%clk 0:01:36]}  Nce7 {[%clk 0:01:07]} 23. Kh2 {[%clk 0:01:31]}  Rc7 {[%clk 0:01:03]} 24. a3 {[%clk 0:01:28]}  Rfc8 {[%clk 0:00:52]} 25. axb4 {[%clk 0:01:28]}  Rxc2 {[%clk 0:00:51]} 26. Nxc2 {[%clk 0:01:29]}  Rxc2 {[%clk 0:00:51]} 27. Rxa5 {[%clk 0:01:22]}  Nc6 {[%clk 0:00:45]} 28. Rc5 {[%clk 0:01:21]}  Ra2 {[%clk 0:00:29]} 29. Bf1 {[%clk 0:01:18]}  Bxf1 {[%clk 0:00:26]} 30. Rxf1 {[%clk 0:01:19]}  Nxb4 {[%clk 0:00:20]} 31. Qf2 {[%clk 0:01:17]}  Ra7 {[%clk 0:00:18]} 32. Rc8+ {[%clk 0:01:15]}  Nf8 {[%clk 0:00:18]} 33. g6 {[%clk 0:01:13]}  Qb7 {[%clk 0:00:13]} 34. gxf7+ {[%clk 0:01:07]}  Kh7 {[%clk 0:00:08]} 35. Qh4+ {[%clk 0:01:07]}  Kg6 {[%clk 0:00:08]} 36. Qh5# {[%clk 0:01:07]} 1-0


[Site "https://www.chess.com"]

[Event "Titled Tuesday Blitz May 2 Late 2023"]
[White "Bilych, Olexiy"]
[Black "Meunier-Pion, Jean"]
[WhiteFideId "14156504"]
[BlackFideId "20685327"]
[WhiteElo "2320"]
[BlackElo "2124"]
[Result "1-0"]
[Round "06"]
[TimeControl "180+2"]
[Date "2023.05.02"]
[WhiteClock "0:00:07"]
[BlackClock "0:00:04"]

1. d4 {[%clk 0:03:00]}  Nf6 {[%clk 0:02:59]} 2. c4 {[%clk 0:03:01]}  e6 {[%clk 0:03:00]} 3. Nf3 {[%clk 0:03:02]}  b6 {[%clk 0:03:00]} 4. g3 {[%clk 0:03:02]}  Bb7 {[%clk 0:03:00]} 5. Bg2 {[%clk 0:03:02]}  Be7 {[%clk 0:03:00]} 6. O-O {[%clk 0:03:03]}  O-O {[%clk 0:02:59]} 7. Re1 {[%clk 0:03:03]}  d5 {[%clk 0:02:58]} 8. cxd5 {[%clk 0:03:02]}  exd5 {[%clk 0:02:58]} 9. Nc3 {[%clk 0:03:02]}  a6 {[%clk 0:02:56]} 10. Bf4 {[%clk 0:03:03]}  Bd6 {[%clk 0:02:54]} 11. Ne5 {[%clk 0:03:02]}  Nbd7 {[%clk 0:02:49]} 12. Qb3 {[%clk 0:03:01]}  Bxe5 {[%clk 0:02:35]} 13. dxe5 {[%clk 0:02:59]}  Nc5 {[%clk 0:02:36]} 14. Qc2 {[%clk 0:02:48]}  Nfe4 {[%clk 0:02:36]} 15. Rad1 {[%clk 0:02:46]}  Nxc3 {[%clk 0:02:29]} 16. bxc3 {[%clk 0:02:41]}  Ne6 {[%clk 0:02:20]} 17. Bc1 {[%clk 0:02:24]}  Rc8 {[%clk 0:02:02]} 18. c4 {[%clk 0:02:02]}  c6 {[%clk 0:02:02]} 19. Ba3 {[%clk 0:01:57]}  Re8 {[%clk 0:01:59]} 20. Bd6 {[%clk 0:01:57]}  dxc4 {[%clk 0:01:55]} 21. Qxc4 {[%clk 0:01:53]}  b5 {[%clk 0:01:56]} 22. Qe4 {[%clk 0:01:23]}  Qa5 {[%clk 0:01:47]} 23. f4 {[%clk 0:01:15]}  Qxa2 {[%clk 0:01:31]} 24. f5 {[%clk 0:01:15]}  Nd8 {[%clk 0:01:26]} 25. Bc5 {[%clk 0:01:02]}  Qc4 {[%clk 0:01:21]} 26. Qxc4 {[%clk 0:00:47]}  bxc4 {[%clk 0:01:22]} 27. Rd7 {[%clk 0:00:47]}  Rxe5 {[%clk 0:01:13]} 28. Red1 {[%clk 0:00:47]}  Re8 {[%clk 0:01:11]} 29. Bb6 {[%clk 0:00:36]}  c3 {[%clk 0:01:10]} 30. Rxd8 {[%clk 0:00:24]}  c2 {[%clk 0:00:38]} 31. Rxe8+ {[%clk 0:00:21]}  Rxe8 {[%clk 0:00:38]} 32. Rc1 {[%clk 0:00:20]}  Rxe2 {[%clk 0:00:36]} 33. Bf3 {[%clk 0:00:19]}  Rd2 {[%clk 0:00:30]} 34. Ba5 {[%clk 0:00:18]}  Rd3 {[%clk 0:00:30]} 35. Kf2 {[%clk 0:00:15]}  Ra3 {[%clk 0:00:26]} 36. Bd2 {[%clk 0:00:12]}  Ra2 {[%clk 0:00:17]} 37. Be4 {[%clk 0:00:11]}  Kf8 {[%clk 0:00:15]} 38. Bb4+ {[%clk 0:00:08]}  Ke8 {[%clk 0:00:15]} 39. Rxc2 {[%clk 0:00:08]}  Ra4 {[%clk 0:00:15]} 40. Rb2 {[%clk 0:00:05]}  Ba8 {[%clk 0:00:08]} 41. Ke3 {[%clk 0:00:03]}  Kd7 {[%clk 0:00:08]} 42. Bc3 {[%clk 0:00:02]}  f6 {[%clk 0:00:08]} 43. Rb8 {[%clk 0:00:01]}  Ra3 {[%clk 0:00:08]} 44. Kd3 {[%clk 0:00:01]}  c5 {[%clk 0:00:09]} 45. Rxa8 {[%clk 0:00:01]}  c4+ {[%clk 0:00:08]} 46. Kxc4 {[%clk 0:00:01]}  Ra4+ {[%clk 0:00:08]} 47. Kd3 {[%clk 0:00:02]}  Ra3 {[%clk 0:00:09]} 48. Ra7+ {[%clk 0:00:03]}  Kd6 {[%clk 0:00:08]} 49. Rxg7 {[%clk 0:00:04]}  h5 {[%clk 0:00:09]} 50. Rh7 {[%clk 0:00:05]}  h4 {[%clk 0:00:09]} 51. Rxh4 {[%clk 0:00:05]}  a5 {[%clk 0:00:10]} 52. Rh6 {[%clk 0:00:06]}  Ra2 {[%clk 0:00:11]} 53. Rxf6+ {[%clk 0:00:07]}  Ke7 {[%clk 0:00:11]} 54. Ra6 {[%clk 0:00:07]}  Rxh2 {[%clk 0:00:10]} 55. Rxa5 {[%clk 0:00:07]}  Rh3 {[%clk 0:00:11]} 56. Kd4 {[%clk 0:00:07]}  Rxg3 {[%clk 0:00:11]} 57. Bb4+ {[%clk 0:00:08]}  Kf6 {[%clk 0:00:10]} 58. Ra6+ {[%clk 0:00:08]}  Kf7 {[%clk 0:00:09]} 59. Bd5+ {[%clk 0:00:08]}  Ke8 {[%clk 0:00:09]} 60. Be6 {[%clk 0:00:07]}  Rg4+ {[%clk 0:00:06]} 61. Kc3 {[%clk 0:00:07]}  Kd8 {[%clk 0:00:05]} 62. Bd6 {[%clk 0:00:06]}  Rg3+ {[%clk 0:00:02]} 63. Bxg3 {[%clk 0:00:06]}  Ke7 {[%clk 0:00:03]} 64. Be5 {[%clk 0:00:07]}  Kf8 {[%clk 0:00:03]} 65. Bf6 {[%clk 0:00:06]}  Ke8 {[%clk 0:00:04]} 66. Ra8# {[%clk 0:00:07]} 1-0


[Site "https://www.chess.com"]

[Event "Titled Tuesday Blitz May 2 Late 2023"]
[White "Remolar Gallen, Jose"]
[Black "Schmakel, Sam"]
[WhiteFideId "2215187"]
[BlackFideId "2039311"]
[WhiteElo "2223"]
[BlackElo "2356"]
[Result "0-1"]
[Round "06"]
[TimeControl "180+2"]
[Date "2023.05.02"]
[WhiteClock "0:00:04"]
[BlackClock "0:00:10"]

1. e4 {[%clk 0:02:54]}  Nc6 {[%clk 0:03:00]} 2. Nc3 {[%clk 0:02:53]}  d6 {[%clk 0:02:58]} 3. Bc4 {[%clk 0:02:54]}  g6 {[%clk 0:02:58]} 4. d4 {[%clk 0:02:52]}  Bg7 {[%clk 0:02:59]} 5. Nge2 {[%clk 0:02:52]}  e5 {[%clk 0:02:58]} 6. d5 {[%clk 0:02:50]}  Nce7 {[%clk 0:02:57]} 7. h4 {[%clk 0:02:47]}  h6 {[%clk 0:02:56]} 8. Be3 {[%clk 0:02:43]}  f5 {[%clk 0:02:55]} 9. f3 {[%clk 0:02:29]}  Nf6 {[%clk 0:02:52]} 10. Qd2 {[%clk 0:02:28]}  a6 {[%clk 0:02:51]} 11. O-O-O {[%clk 0:02:23]}  b5 {[%clk 0:02:51]} 12. Bb3 {[%clk 0:02:23]}  b4 {[%clk 0:02:39]} 13. Na4 {[%clk 0:02:22]}  a5 {[%clk 0:02:39]} 14. h5 {[%clk 0:02:16]}  g5 {[%clk 0:02:24]} 15. exf5 {[%clk 0:02:11]}  Nxf5 {[%clk 0:02:22]} 16. c3 {[%clk 0:01:32]}  Nxe3 {[%clk 0:02:07]} 17. Qxe3 {[%clk 0:01:31]}  O-O {[%clk 0:02:07]} 18. g4 {[%clk 0:01:20]}  Bd7 {[%clk 0:02:03]} 19. Qd2 {[%clk 0:01:12]}  Qe8 {[%clk 0:02:01]} 20. Qc2 {[%clk 0:01:12]}  Kh8 {[%clk 0:01:31]} 21. c4 {[%clk 0:01:08]}  e4 {[%clk 0:01:05]} 22. Ng3 {[%clk 0:00:42]}  Qe5 {[%clk 0:00:57]} 23. Nxe4 {[%clk 0:00:39]}  Nxe4 {[%clk 0:00:57]} 24. fxe4 {[%clk 0:00:38]}  Bxg4 {[%clk 0:00:56]} 25. Rde1 {[%clk 0:00:38]}  Bf3 {[%clk 0:00:50]} 26. Rhf1 {[%clk 0:00:38]}  g4 {[%clk 0:00:44]} 27. c5 {[%clk 0:00:30]}  Rab8 {[%clk 0:00:38]} 28. Kb1 {[%clk 0:00:30]}  g3 {[%clk 0:00:37]} 29. Qd3 {[%clk 0:00:26]}  Bxe4 {[%clk 0:00:18]} 30. Rxf8+ {[%clk 0:00:23]}  Rxf8 {[%clk 0:00:19]} 31. Qxe4 {[%clk 0:00:23]}  Qxe4+ {[%clk 0:00:19]} 32. Rxe4 {[%clk 0:00:23]}  g2 {[%clk 0:00:20]} 33. Rg4 {[%clk 0:00:16]}  Rf1+ {[%clk 0:00:20]} 34. Kc2 {[%clk 0:00:16]}  g1=Q {[%clk 0:00:21]} 35. Rxg1 {[%clk 0:00:16]}  Rxg1 {[%clk 0:00:22]} 36. Kd3 {[%clk 0:00:16]}  Rg4 {[%clk 0:00:18]} 37. cxd6 {[%clk 0:00:12]}  cxd6 {[%clk 0:00:19]} 38. Nb6 {[%clk 0:00:12]}  Bxb2 {[%clk 0:00:14]} 39. Nc4 {[%clk 0:00:12]}  Be5 {[%clk 0:00:15]} 40. Nxa5 {[%clk 0:00:10]}  Kg7 {[%clk 0:00:15]} 41. Nc6 {[%clk 0:00:10]}  Kf6 {[%clk 0:00:14]} 42. Bc4 {[%clk 0:00:06]}  Rg3+ {[%clk 0:00:14]} 43. Ke4 {[%clk 0:00:06]}  Bc3 {[%clk 0:00:13]} 44. Bd3 {[%clk 0:00:04]}  Rh3 {[%clk 0:00:10]} 0-1


[Site "https://www.chess.com"]

[Event "Titled Tuesday Blitz May 2 Late 2023"]
[White "Wieczorek, Oskar"]
[Black "Shapiro, Viktor"]
[WhiteFideId "1133950"]
[BlackFideId "4175700"]
[WhiteElo "2418"]
[BlackElo "2152"]
[Result "1-0"]
[Round "06"]
[TimeControl "180+2"]
[Date "2023.05.02"]
[WhiteClock "0:00:46"]
[BlackClock "0:01:21"]

1. e4 {[%clk 0:02:56]}  Nf6 {[%clk 0:03:00]} 2. e5 {[%clk 0:02:55]}  Nd5 {[%clk 0:03:00]} 3. d4 {[%clk 0:02:56]}  d6 {[%clk 0:03:00]} 4. exd6 {[%clk 0:02:56]}  cxd6 {[%clk 0:03:00]} 5. c4 {[%clk 0:02:56]}  Nb6 {[%clk 0:03:00]} 6. Nc3 {[%clk 0:02:56]}  g6 {[%clk 0:03:00]} 7. Be3 {[%clk 0:02:57]}  Bg7 {[%clk 0:03:01]} 8. Rc1 {[%clk 0:02:57]}  O-O {[%clk 0:03:01]} 9. Nf3 {[%clk 0:02:58]}  f5 {[%clk 0:03:02]} 10. g3 {[%clk 0:02:57]}  e5 {[%clk 0:03:01]} 11. dxe5 {[%clk 0:02:54]}  dxe5 {[%clk 0:03:01]} 12. Qxd8 {[%clk 0:02:54]}  Rxd8 {[%clk 0:03:01]} 13. c5 {[%clk 0:02:55]}  f4 {[%clk 0:03:01]} 14. gxf4 {[%clk 0:02:48]}  exf4 {[%clk 0:03:02]} 15. Bxf4 {[%clk 0:02:49]}  Rf8 {[%clk 0:02:50]} 16. Bg3 {[%clk 0:01:28]}  Rxf3 {[%clk 0:02:41]} 17. cxb6 {[%clk 0:01:28]}  Be6 {[%clk 0:02:30]} 18. Bg2 {[%clk 0:01:25]}  Rf7 {[%clk 0:02:28]} 19. Nb5 {[%clk 0:01:10]}  Nc6 {[%clk 0:02:23]} 20. Nc7 {[%clk 0:01:06]}  Rd8 {[%clk 0:01:47]} 21. Nxe6 {[%clk 0:01:03]}  Re7 {[%clk 0:01:46]} 22. Bh3 {[%clk 0:00:53]}  Nd4 {[%clk 0:01:33]} 23. Rc7 {[%clk 0:00:49]}  Rde8 {[%clk 0:01:21]} 24. Rxe7 {[%clk 0:00:47]}  Rxe7 {[%clk 0:01:21]} 25. bxa7 {[%clk 0:00:46]} 1-0


[Site "https://www.chess.com"]

[Event "Titled Tuesday Blitz May 2 Late 2023"]
[White "Colpe, Malte"]
[Black "Osinenko, Anton"]
[WhiteFideId "24623075"]
[BlackFideId "4158970"]
[WhiteElo "2289"]
[BlackElo "2294"]
[Result "0-1"]
[Round "06"]
[TimeControl "180+2"]
[Date "2023.05.02"]
[WhiteClock "0:02:04"]
[BlackClock "0:02:26"]

1. d4 {[%clk 0:02:58]}  Nf6 {[%clk 0:03:00]} 2. c4 {[%clk 0:02:57]}  e5 {[%clk 0:03:00]} 3. dxe5 {[%clk 0:02:57]}  Ng4 {[%clk 0:03:00]} 4. Nf3 {[%clk 0:02:53]}  Nc6 {[%clk 0:03:00]} 5. e3 {[%clk 0:02:53]}  Ngxe5 {[%clk 0:03:00]} 6. Nxe5 {[%clk 0:02:53]}  Nxe5 {[%clk 0:03:01]} 7. f4 {[%clk 0:02:53]}  Ng6 {[%clk 0:02:58]} 8. Nc3 {[%clk 0:02:53]}  a5 {[%clk 0:02:54]} 9. Bd3 {[%clk 0:02:52]}  Bc5 {[%clk 0:02:54]} 10. O-O {[%clk 0:02:39]}  O-O {[%clk 0:02:52]} 11. Kh1 {[%clk 0:02:39]}  f5 {[%clk 0:02:51]} 12. e4 {[%clk 0:02:30]}  d6 {[%clk 0:02:49]} 13. Qh5 {[%clk 0:02:23]}  Qh4 {[%clk 0:02:33]} 14. Qxh4 {[%clk 0:02:15]}  Nxh4 {[%clk 0:02:34]} 15. g3 {[%clk 0:02:06]}  Ng6 {[%clk 0:02:28]} 16. Nd5 {[%clk 0:02:05]}  c6 {[%clk 0:02:27]} 17. Ne7+ {[%clk 0:02:04]}  Nxe7 {[%clk 0:02:26]} 0-1


[Site "https://www.chess.com"]

[Event "Titled Tuesday Blitz May 2 Late 2023"]
[White "Shubenkova, Veronika"]
[Black "Adla, Diego"]
[WhiteFideId "44124040"]
[BlackFideId "100072"]
[WhiteElo "2027"]
[BlackElo "2377"]
[Result "1-0"]
[Round "06"]
[TimeControl "180+2"]
[Date "2023.05.02"]
[WhiteClock "0:00:06"]
[BlackClock "0:00:08"]

1. e4 {[%clk 0:03:00]}  e5 {[%clk 0:02:57]} 2. Nf3 {[%clk 0:03:00]}  Nc6 {[%clk 0:02:57]} 3. Bb5 {[%clk 0:03:00]}  Bc5 {[%clk 0:02:56]} 4. O-O {[%clk 0:02:59]}  Qf6 {[%clk 0:02:56]} 5. d3 {[%clk 0:02:56]}  h6 {[%clk 0:02:55]} 6. Nbd2 {[%clk 0:02:53]}  Nge7 {[%clk 0:02:55]} 7. Nb3 {[%clk 0:02:52]}  Bb6 {[%clk 0:02:54]} 8. Be3 {[%clk 0:02:52]}  O-O {[%clk 0:02:53]} 9. a4 {[%clk 0:02:42]}  a6 {[%clk 0:02:46]} 10. Bxc6 {[%clk 0:02:41]}  bxc6 {[%clk 0:02:44]} 11. a5 {[%clk 0:02:38]}  Ba7 {[%clk 0:02:44]} 12. Qe2 {[%clk 0:02:23]}  d6 {[%clk 0:02:44]} 13. h3 {[%clk 0:02:21]}  Ng6 {[%clk 0:02:43]} 14. d4 {[%clk 0:02:16]}  exd4 {[%clk 0:02:33]} 15. Nbxd4 {[%clk 0:02:12]}  Bd7 {[%clk 0:02:31]} 16. Qd2 {[%clk 0:02:09]}  Rfe8 {[%clk 0:02:26]} 17. Qd3 {[%clk 0:01:32]}  c5 {[%clk 0:02:09]} 18. Nf5 {[%clk 0:01:31]}  Bc6 {[%clk 0:02:02]} 19. Ng3 {[%clk 0:01:26]}  c4 {[%clk 0:02:00]} 20. Qxc4 {[%clk 0:01:10]}  Bb5 {[%clk 0:01:59]} 21. Qxc7 {[%clk 0:01:09]}  Bxe3 {[%clk 0:01:58]} 22. fxe3 {[%clk 0:01:07]}  Bxf1 {[%clk 0:01:58]} 23. Rxf1 {[%clk 0:01:08]}  Qxb2 {[%clk 0:01:52]} 24. Nd4 {[%clk 0:01:05]}  Re7 {[%clk 0:01:49]} 25. Qxd6 {[%clk 0:01:04]}  Qb8 {[%clk 0:01:46]} 26. Qxb8+ {[%clk 0:00:55]}  Rxb8 {[%clk 0:01:47]} 27. Nc6 {[%clk 0:00:55]}  Rb5 {[%clk 0:01:47]} 28. Nxe7+ {[%clk 0:00:53]}  Nxe7 {[%clk 0:01:48]} 29. Ra1 {[%clk 0:00:47]}  Nc6 {[%clk 0:01:47]} 30. Nf5 {[%clk 0:00:46]}  Rxa5 {[%clk 0:01:43]} 31. Rd1 {[%clk 0:00:34]}  Rc5 {[%clk 0:01:40]} 32. Rd6 {[%clk 0:00:31]}  Kh7 {[%clk 0:01:32]} 33. Nd4 {[%clk 0:00:25]}  Nb4 {[%clk 0:01:16]} 34. Rd7 {[%clk 0:00:20]}  Kg6 {[%clk 0:01:14]} 35. Rd6+ {[%clk 0:00:17]}  Kh7 {[%clk 0:00:59]} 36. Rd7 {[%clk 0:00:17]}  Nxc2 {[%clk 0:00:56]} 37. Rxf7 {[%clk 0:00:14]}  Nxe3 {[%clk 0:00:52]} 38. Ra7 {[%clk 0:00:09]}  Rc4 {[%clk 0:00:47]} 39. Nf5 {[%clk 0:00:07]}  Nxf5 {[%clk 0:00:36]} 40. exf5 {[%clk 0:00:08]}  Rc6 {[%clk 0:00:36]} 41. g4 {[%clk 0:00:07]}  Kg8 {[%clk 0:00:32]} 42. Kg2 {[%clk 0:00:07]}  g6 {[%clk 0:00:32]} 43. Kf3 {[%clk 0:00:06]}  gxf5 {[%clk 0:00:32]} 44. gxf5 {[%clk 0:00:07]}  Kf8 {[%clk 0:00:23]} 45. Kf4 {[%clk 0:00:06]}  Rb6 {[%clk 0:00:20]} 46. Ke5 {[%clk 0:00:06]}  Kg8 {[%clk 0:00:20]} 47. f6 {[%clk 0:00:06]}  Kf8 {[%clk 0:00:20]} 48. Kf5 {[%clk 0:00:06]}  h5 {[%clk 0:00:13]} 49. Kg6 {[%clk 0:00:06]}  Rb8 {[%clk 0:00:12]} 50. Rxa6 {[%clk 0:00:06]}  h4 {[%clk 0:00:10]} 51. Ra4 {[%clk 0:00:06]}  Kg8 {[%clk 0:00:08]} 52. Rxh4 {[%clk 0:00:06]} 1-0


[Site "https://www.chess.com"]

[Event "Titled Tuesday Blitz May 2 Late 2023"]
[White "Lee, Linden"]
[Black "Topalov, Aleksandar"]
[WhiteFideId "30941830"]
[BlackFideId "925659"]
[WhiteElo "1985"]
[BlackElo "2151"]
[Result "1-0"]
[Round "06"]
[TimeControl "180+2"]
[Date "2023.05.02"]
[WhiteClock "0:02:07"]
[BlackClock "0:00:17"]

1. d4 {[%clk 0:03:00]}  Nf6 {[%clk 0:02:59]} 2. c4 {[%clk 0:03:01]}  c5 {[%clk 0:02:59]} 3. d5 {[%clk 0:03:01]}  d6 {[%clk 0:02:59]} 4. Nc3 {[%clk 0:03:01]}  g6 {[%clk 0:03:00]} 5. e4 {[%clk 0:03:01]}  Bg7 {[%clk 0:03:00]} 6. Nf3 {[%clk 0:03:01]}  O-O {[%clk 0:03:00]} 7. Bd3 {[%clk 0:03:01]}  Na6 {[%clk 0:02:56]} 8. h3 {[%clk 0:03:01]}  Nc7 {[%clk 0:02:56]} 9. O-O {[%clk 0:03:01]}  e5 {[%clk 0:02:56]} 10. Be3 {[%clk 0:02:56]}  Nh5 {[%clk 0:02:56]} 11. Re1 {[%clk 0:02:55]}  Nf4 {[%clk 0:02:56]} 12. Bf1 {[%clk 0:02:55]}  f5 {[%clk 0:02:45]} 13. Bxf4 {[%clk 0:02:54]}  exf4 {[%clk 0:02:45]} 14. e5 {[%clk 0:02:55]}  dxe5 {[%clk 0:02:45]} 15. Nxe5 {[%clk 0:02:55]}  Qd6 {[%clk 0:02:44]} 16. Nd3 {[%clk 0:02:53]}  Bd7 {[%clk 0:02:40]} 17. Qf3 {[%clk 0:02:50]}  g5 {[%clk 0:02:40]} 18. Rac1 {[%clk 0:02:38]}  Rae8 {[%clk 0:02:35]} 19. b4 {[%clk 0:02:35]}  Na6 {[%clk 0:02:15]} 20. Rxe8 {[%clk 0:02:19]}  Rxe8 {[%clk 0:02:14]} 21. Nb5 {[%clk 0:02:15]}  Bxb5 {[%clk 0:02:06]} 22. cxb5 {[%clk 0:02:16]}  Nxb4 {[%clk 0:02:06]} 23. Nxc5 {[%clk 0:02:17]}  b6 {[%clk 0:01:38]} 24. Ne6 {[%clk 0:02:15]}  Bf6 {[%clk 0:01:38]} 25. Qh5 {[%clk 0:02:12]}  Rxe6 {[%clk 0:00:17]} 26. dxe6 {[%clk 0:02:07]} 1-0


[Site "https://www.chess.com"]